[Event "CCT Chessable Masters Play-In 2025"]
[Site "Online"]
[Date "2025.02.17"]
[Round "4.32"]
[White "Mikaelyan, Arman"]
[Black "Eljanov, Pavel"]
[Result "1-0"]
[ECO "C84"]
[WhiteElo "2497"]
[BlackElo "2658"]
[PlyCount "75"]
[EventDate "2025.02.13"]
[EventType "swiss"]
[EventCountry "NET"]
[TimeControl "600"]
[WhiteClock "0:01:08"]
[BlackClock "0:01:24"]

1. e4 {[%emt 0:00:05]} e5 {[%emt 0:00:02]} 2. Nf3 {[%emt 0:00:02]} Nc6 {[%emt 0:00:01]} 3. Bb5 {[%emt 0:00:01]} a6 {[%emt 0:00:01]} 4. Ba4 {[%emt 0:00:01]} Nf6 {[%emt 0:00:01]} 5. d4 {[%emt 0:00:01]} exd4 {[%emt 0:00:04]} 6. O-O {[%emt 0:00:02]} Be7 {[%emt 0:00:15]} 7. e5 {[%emt 0:00:03]} Ne4 {[%emt 0:00:04]} 8. Nxd4 {[%emt 0:00:19]} O-O {[%emt 0:00:37]} 9. Re1 {[%emt 0:00:17]} Nxd4 {[%emt 0:00:51]} 10. Qxd4 {[%emt 0:00:07]} Nc5 {[%emt 0:00:02]} 11. Bb3 {[%emt 0:01:01]} d6 {[%emt 0:00:55]} 12. Bf4 {[%emt 0:00:28]} Nxb3 {[%emt 0:00:43]} 13. cxb3 {[%emt 0:00:25]} d5 {[%emt 0:00:28]} 14. Nc3 {[%emt 0:00:09]} Be6 {[%emt 0:00:01]} 15. Rad1 {[%emt 0:00:21]} c5 {[%emt 0:00:04]} 16. Qd3 {[%emt 0:00:02]} d4 {[%emt 0:00:02]} 17. Ne4 {[%emt 0:00:02]} b6 {[%emt 0:00:53]} 18. Qg3 {[%emt 0:00:22]} Kh8 {[%emt 0:00:08]} 19. Nd6 {[%emt 0:00:03]} a5 {[%emt 0:00:08]} 20. a3 {[%emt 0:00:15]} Qd7 {[%emt 0:00:10]} 21. b4 {[%emt 0:00:38]} axb4 {[%emt 0:00:02]} 22. axb4 {[%emt 0:00:00]} Ra2 {[%emt 0:00:14]} 23. bxc5 {[%emt 0:00:31]} bxc5 {[%emt 0:00:01]} 24. b4 {[%emt 0:00:01]} cxb4 {[%emt 0:00:15]} 25. Rxd4 {[%emt 0:00:03]} Qa4 {[%emt 0:00:27]} 26. h4 {[%emt 0:00:40]} Ra1 {[%emt 0:00:09]} 27. Qe3 {[%emt 0:00:04]} Qa3 {[%emt 0:00:13]} 28. Kh2 {[%emt 0:00:52]} Rxe1 {[%emt 0:00:09]} 29. Qxe1 {[%emt 0:00:01]} b3 {[%emt 0:00:02]} 30. Qb4 {[%emt 0:00:09]} Qa7 {[%emt 0:00:13]} 31. Be3 {[%emt 0:00:27]} Qb8 {[%emt 0:00:05]} 32. Nxf7+ {[%emt 0:00:56]} Bxf7 {[%emt 0:00:02]} 33. Qxe7 {[%emt 0:00:01]} Kg8 {[%emt 0:00:38]} 34. Rb4 {[%emt 0:00:12]} b2 {[%emt 0:00:05]} 35. Rxb8 {[%emt 0:00:06]} Rxb8 {[%emt 0:00:00]} 36. e6 {[%emt 0:00:00]} Bxe6 {[%emt 0:00:21]} 37. Bd4 {[%emt 0:00:02]} Bf7 {[%emt 0:00:10]} 38. Qe5 {[%emt 0:00:03]} 1-0

[Event "CCT Chessable Masters Play-In 2025"]
[Site "Online"]
[Date "2025.02.17"]
[Round "4.33"]
[White "Ivic, Velimir"]
[Black "Sharapov, Evgeny"]
[Result "1-0"]
[ECO "B63"]
[WhiteElo "2622"]
[BlackElo "2375"]
[PlyCount "55"]
[EventDate "2025.02.13"]
[EventType "swiss"]
[EventCountry "NET"]
[TimeControl "600"]
[WhiteClock "0:04:11"]
[BlackClock "0:05:56"]

1. e4 {[%emt 0:00:01]} c5 {[%emt 0:00:04]} 2. Nf3 {[%emt 0:00:00]} d6 {[%emt 0:00:01]} 3. d4 {[%emt 0:00:03]} cxd4 {[%emt 0:00:01]} 4. Nxd4 {[%emt 0:00:00]} Nf6 {[%emt 0:00:01]} 5. Nc3 {[%emt 0:00:00]} Nc6 {[%emt 0:00:01]} 6. Bg5 {[%emt 0:00:02]} e6 {[%emt 0:00:01]} 7. Qd2 {[%emt 0:00:00]} Be7 {[%emt 0:00:01]} 8. O-O-O {[%emt 0:00:03]} O-O {[%emt 0:00:01]} 9. h4 {[%emt 0:00:08]} Nxd4 {[%emt 0:00:02]} 10. Qxd4 {[%emt 0:00:01]} Qa5 {[%emt 0:00:01]} 11. f4 {[%emt 0:00:06]} Rd8 {[%emt 0:00:02]} 12. Be2 {[%emt 0:00:05]} e5 {[%emt 0:00:28]} 13. Qe3 {[%emt 0:00:04]} exf4 {[%emt 0:00:06]} 14. Qxf4 {[%emt 0:00:36]} Be6 {[%emt 0:00:04]} 15. Kb1 {[%emt 0:00:11]} Rac8 {[%emt 0:00:08]} 16. Nd5 {[%emt 0:00:28]} Nxd5 {[%emt 0:01:01]} 17. exd5 {[%emt 0:00:07]} Bxd5 {[%emt 0:00:01]} 18. c4 {[%emt 0:00:31]} Bxg5 {[%emt 0:00:09]} 19. hxg5 {[%emt 0:00:04]} Be6 {[%emt 0:00:14]} 20. Bd3 {[%emt 0:00:32]} b5 {[%emt 0:00:05]} 21. Rxh7 {[%emt 0:01:04]} bxc4 {[%emt 0:00:21]} 22. Qh4 {[%emt 0:01:09]} Kf8 {[%emt 0:00:09]} 23. g6 {[%emt 0:00:02]} f6 {[%emt 0:00:26]} 24. Rxg7 {[%emt 0:00:08]} Kxg7 {[%emt 0:00:28]} 25. Qh7+ {[%emt 0:00:02]} Kf8 {[%emt 0:00:01]} 26. g7+ {[%emt 0:00:01]} Ke8 {[%emt 0:00:01]} 27. Bg6+ {[%emt 0:00:20]} Kd7 {[%emt 0:00:06]} 28. g8=Q+ {[%emt 0:00:01]} 1-0

[Event "CCT Chessable Masters Play-In 2025"]
[Site "Online"]
[Date "2025.02.17"]
[Round "4.34"]
[White "Paravyan, David"]
[Black "Vaishali, Rameshbabu"]
[Result "1/2-1/2"]
[ECO "B66"]
[WhiteElo "2621"]
[BlackElo "2476"]
[PlyCount "85"]
[EventDate "2025.02.13"]
[EventType "swiss"]
[EventCountry "NET"]
[TimeControl "600"]
[WhiteClock "0:01:01"]
[BlackClock "0:02:27"]

1. e4 {[%emt 0:00:06]} c5 {[%emt 0:00:01]} 2. Nf3 {[%emt 0:00:02]} d6 {[%emt 0:00:01]} 3. d4 {[%emt 0:00:01]} cxd4 {[%emt 0:00:00]} 4. Nxd4 {[%emt 0:00:01]} Nf6 {[%emt 0:00:01]} 5. Nc3 {[%emt 0:00:00]} a6 {[%emt 0:00:01]} 6. Bg5 {[%emt 0:00:11]} e6 {[%emt 0:00:03]} 7. Qd2 {[%emt 0:00:08]} Be7 {[%emt 0:00:15]} 8. O-O-O {[%emt 0:00:02]} Nc6 {[%emt 0:00:00]} 9. Nxc6 {[%emt 0:00:08]} bxc6 {[%emt 0:00:00]} 10. Bxf6 {[%emt 0:00:04]} gxf6 {[%emt 0:00:01]} 11. Bc4 {[%emt 0:00:05]} Bb7 {[%emt 0:00:02]} 12. Rhe1 {[%emt 0:00:32]} Qb6 {[%emt 0:00:15]} 13. Kb1 {[%emt 0:00:12]} O-O-O {[%emt 0:00:23]} 14. Qe2 {[%emt 0:00:17]} Rhg8 {[%emt 0:00:32]} 15. f4 {[%emt 0:00:15]} d5 {[%emt 0:00:46]} 16. exd5 {[%emt 0:00:15]} Bb4 {[%emt 0:00:05]} 17. Na4 {[%emt 0:01:24]} Qa5 {[%emt 0:00:13]} 18. c3 {[%emt 0:00:12]} cxd5 {[%emt 0:00:18]} 19. cxb4 {[%emt 0:00:32]} Qxa4 {[%emt 0:00:04]} 20. Bd3 {[%emt 0:00:00]} Qxb4 {[%emt 0:00:36]} 21. Bxa6 {[%emt 0:00:05]} Rd6 {[%emt 0:00:01]} 22. Qc2+ {[%emt 0:01:16]} Kb8 {[%emt 0:00:18]} 23. Bxb7 {[%emt 0:00:01]} Qxb7 {[%emt 0:00:08]} 24. Re3 {[%emt 0:00:14]} Rb6 {[%emt 0:00:27]} 25. Rc3 {[%emt 0:00:20]} f5 {[%emt 0:01:22]} 26. g3 {[%emt 0:00:39]} Rc8 {[%emt 0:00:07]} 27. Rxc8+ {[%emt 0:00:11]} Qxc8 {[%emt 0:00:00]} 28. Qxc8+ {[%emt 0:00:02]} Kxc8 {[%emt 0:00:00]} 29. Kc2 {[%emt 0:00:19]} Kc7 {[%emt 0:00:05]} 30. Rd3 {[%emt 0:00:08]} f6 {[%emt 0:00:08]} 31. a4 {[%emt 0:00:04]} Rc6+ {[%emt 0:00:18]} 32. Rc3 {[%emt 0:00:19]} d4 {[%emt 0:00:14]} 33. Rxc6+ {[%emt 0:00:02]} Kxc6 {[%emt 0:00:00]} 34. Kd3 {[%emt 0:00:21]} Kd5 {[%emt 0:00:17]} 35. a5 {[%emt 0:00:08]} e5 {[%emt 0:00:01]} 36. a6 {[%emt 0:00:12]} e4+ {[%emt 0:00:04]} 37. Kd2 {[%emt 0:00:01]} Kc6 {[%emt 0:00:03]} 38. b4 {[%emt 0:00:01]} Kb6 {[%emt 0:00:02]} 39. b5 {[%emt 0:00:01]} Ka7 {[%emt 0:00:11]} 40. Kc2 {[%emt 0:00:04]} Kb6 {[%emt 0:00:01]} 41. Kd2 {[%emt 0:00:01]} Ka7 {[%emt 0:00:01]} 42. Kc2 {[%emt 0:00:01]} Kb6 {[%emt 0:00:08]} 43. Kd2 {[%emt 0:00:02]} 1/2-1/2

[Event "CCT Chessable Masters Play-In 2025"]
[Site "Online"]
[Date "2025.02.17"]
[Round "4.35"]
[White "Indjic, Aleksandar"]
[Black "Rozum, Ivan"]
[Result "0-1"]
[ECO "E35"]
[WhiteElo "2650"]
[BlackElo "2443"]
[PlyCount "86"]
[EventDate "2025.02.13"]
[EventType "swiss"]
[EventCountry "NET"]
[TimeControl "600"]
[WhiteClock "0:01:47"]
[BlackClock "0:02:13"]

1. d4 {[%emt 0:00:01]} Nf6 {[%emt 0:00:03]} 2. c4 {[%emt 0:00:00]} e6 {[%emt 0:00:02]} 3. Nc3 {[%emt 0:00:00]} Bb4 {[%emt 0:00:01]} 4. Qc2 {[%emt 0:00:01]} d5 {[%emt 0:00:04]} 5. cxd5 {[%emt 0:00:01]} exd5 {[%emt 0:00:01]} 6. Bg5 {[%emt 0:00:01]} h6 {[%emt 0:00:01]} 7. Bh4 {[%emt 0:00:01]} g5 {[%emt 0:00:00]} 8. Bg3 {[%emt 0:00:01]} Nc6 {[%emt 0:00:01]} 9. e3 {[%emt 0:00:01]} h5 {[%emt 0:00:01]} 10. Bd3 {[%emt 0:00:01]} h4 {[%emt 0:00:05]} 11. Be5 {[%emt 0:00:02]} Bxc3+ {[%emt 0:00:42]} 12. bxc3 {[%emt 0:00:52]} Nxe5 {[%emt 0:00:07]} 13. dxe5 {[%emt 0:00:00]} Ng4 {[%emt 0:00:15]} 14. Qa4+ {[%emt 0:00:08]} c6 {[%emt 0:00:12]} 15. Qd4 {[%emt 0:00:04]} Qe7 {[%emt 0:00:18]} 16. f4 {[%emt 0:00:34]} f6 {[%emt 0:00:22]} 17. exf6 {[%emt 0:00:04]} Qxf6 {[%emt 0:00:19]} 18. Qxf6 {[%emt 0:00:03]} Nxf6 {[%emt 0:00:00]} 19. fxg5 {[%emt 0:00:01]} Ng4 {[%emt 0:00:13]} 20. Ke2 {[%emt 0:00:03]} Ne5 {[%emt 0:00:04]} 21. Kd2 {[%emt 0:00:35]} h3 {[%emt 0:00:19]} 22. Nxh3 {[%emt 0:00:33]} Bxh3 {[%emt 0:00:02]} 23. gxh3 {[%emt 0:00:00]} Rxh3 {[%emt 0:00:20]} 24. Raf1 {[%emt 0:00:24]} Ke7 {[%emt 0:00:07]} 25. Rf5 {[%emt 0:00:02]} Ke6 {[%emt 0:00:38]} 26. Rf6+ {[%emt 0:00:07]} Ke7 {[%emt 0:00:03]} 27. Bf5 {[%emt 0:00:19]} Nc4+ {[%emt 0:00:07]} 28. Kc1 {[%emt 0:00:07]} Rxe3 {[%emt 0:00:03]} 29. h4 {[%emt 0:00:25]} Rg8 {[%emt 0:00:26]} 30. Rh3 {[%emt 0:00:32]} Re1+ {[%emt 0:00:33]} 31. Kc2 {[%emt 0:00:02]} Re2+ {[%emt 0:00:00]} 32. Kd1 {[%emt 0:00:01]} Rxa2 {[%emt 0:00:08]} 33. Re6+ {[%emt 0:00:02]} Kd8 {[%emt 0:00:08]} 34. g6 {[%emt 0:00:02]} Rg2 {[%emt 0:00:43]} 35. h5 {[%emt 0:00:03]} Rf8 {[%emt 0:00:03]} 36. Rf3 {[%emt 0:00:08]} Rh8 {[%emt 0:00:39]} 37. Rh3 {[%emt 0:01:13]} Rf8 {[%emt 0:00:01]} 38. Re1 {[%emt 0:01:27]} Rxf5 {[%emt 0:00:07]} 39. h6 {[%emt 0:00:07]} Rff2 {[%emt 0:00:20]} 40. h7 {[%emt 0:00:02]} Rd2+ {[%emt 0:00:05]} 41. Kc1 {[%emt 0:00:01]} Rc2+ {[%emt 0:00:02]} 42. Kb1 {[%emt 0:00:01]} Na3+ {[%emt 0:00:02]} 43. Ka1 {[%emt 0:00:01]} Ra2# {[%emt 0:00:00]} 0-1

[Event "CCT Chessable Masters Play-In 2025"]
[Site "Online"]
[Date "2025.02.17"]
[Round "4.36"]
[White "Antipov, Mikhail Al."]
[Black "Pultinevicius, Paulius"]
[Result "1-0"]
[ECO "B13"]
[WhiteElo "2571"]
[BlackElo "2566"]
[PlyCount "71"]
[EventDate "2025.02.13"]
[EventType "swiss"]
[EventCountry "NET"]
[TimeControl "600"]
[WhiteClock "0:06:00"]
[BlackClock "0:05:23"]

1. e4 {[%emt 0:00:01]} c6 {[%emt 0:00:07]} 2. d4 {[%emt 0:00:01]} d5 {[%emt 0:00:05]} 3. exd5 {[%emt 0:00:00]} cxd5 {[%emt 0:00:02]} 4. Bd3 {[%emt 0:00:01]} Nc6 {[%emt 0:00:02]} 5. c3 {[%emt 0:00:01]} Qc7 {[%emt 0:00:05]} 6. h3 {[%emt 0:00:01]} g6 {[%emt 0:00:02]} 7. Nf3 {[%emt 0:00:01]} Bf5 {[%emt 0:00:01]} 8. Be2 {[%emt 0:00:00]} Nf6 {[%emt 0:00:08]} 9. O-O {[%emt 0:00:01]} e6 {[%emt 0:00:04]} 10. Re1 {[%emt 0:00:00]} h5 {[%emt 0:00:06]} 11. Bb5 {[%emt 0:00:02]} Bd6 {[%emt 0:00:03]} 12. c4 {[%emt 0:00:03]} Kf8 {[%emt 0:00:04]} 13. Nc3 {[%emt 0:00:03]} a6 {[%emt 0:00:09]} 14. Bxc6 {[%emt 0:00:02]} bxc6 {[%emt 0:00:04]} 15. Bg5 {[%emt 0:00:45]} Kg7 {[%emt 0:00:39]} 16. Qd2 {[%emt 0:00:15]} Ne4 {[%emt 0:00:05]} 17. Nxe4 {[%emt 0:00:12]} dxe4 {[%emt 0:00:00]} 18. Nh4 {[%emt 0:00:08]} f6 {[%emt 0:00:02]} 19. Be3 {[%emt 0:00:03]} g5 {[%emt 0:00:01]} 20. Bxg5 {[%emt 0:00:14]} fxg5 {[%emt 0:00:08]} 21. Qxg5+ {[%emt 0:00:07]} Kf7 {[%emt 0:00:02]} 22. Nxf5 {[%emt 0:00:00]} exf5 {[%emt 0:00:17]} 23. Qxf5+ {[%emt 0:00:01]} Kg7 {[%emt 0:00:02]} 24. Qg5+ {[%emt 0:00:01]} Kf7 {[%emt 0:00:03]} 25. Rxe4 {[%emt 0:00:06]} Qd7 {[%emt 0:00:03]} 26. Re3 {[%emt 0:00:15]} Rag8 {[%emt 0:00:18]} 27. Rf3+ {[%emt 0:00:04]} Ke8 {[%emt 0:00:00]} 28. Re1+ {[%emt 0:00:01]} Be7 {[%emt 0:00:01]} 29. Qe5 {[%emt 0:00:36]} Rh7 {[%emt 0:00:06]} 30. Rf6 {[%emt 0:00:38]} Rhg7 {[%emt 0:00:44]} 31. g3 {[%emt 0:00:06]} Qxh3 {[%emt 0:00:55]} 32. Qb8+ {[%emt 0:00:03]} Kd7 {[%emt 0:00:02]} 33. Rxe7+ {[%emt 0:00:07]} Kxe7 {[%emt 0:00:01]} 34. Qd6+ {[%emt 0:00:01]} Ke8 {[%emt 0:00:01]} 35. Re6+ {[%emt 0:00:00]} Qxe6 {[%emt 0:00:05]} 36. Qxe6+ {[%emt 0:00:00]} 1-0

[Event "CCT Chessable Masters Play-In 2025"]
[Site "Online"]
[Date "2025.02.17"]
[Round "4.37"]
[White "Gholami Orimi, Mahdi"]
[Black "Svane, Rasmus"]
[Result "1/2-1/2"]
[ECO "D31"]
[WhiteElo "2509"]
[BlackElo "2621"]
[PlyCount "82"]
[EventDate "2025.02.13"]
[EventType "swiss"]
[EventCountry "NET"]
[TimeControl "600"]
[WhiteClock "0:03:24"]
[BlackClock "0:00:32"]

1. d4 {[%emt 0:00:01]} d5 {[%emt 0:00:02]} 2. c4 {[%emt 0:00:01]} e6 {[%emt 0:00:01]} 3. Nc3 {[%emt 0:00:03]} a6 {[%emt 0:00:01]} 4. cxd5 {[%emt 0:00:03]} exd5 {[%emt 0:00:00]} 5. Nf3 {[%emt 0:00:05]} c6 {[%emt 0:00:02]} 6. Bg5 {[%emt 0:00:05]} Be7 {[%emt 0:00:01]} 7. Bxe7 {[%emt 0:00:03]} Nxe7 {[%emt 0:00:00]} 8. e3 {[%emt 0:00:01]} Bf5 {[%emt 0:00:13]} 9. Bd3 {[%emt 0:00:02]} Nd7 {[%emt 0:00:03]} 10. O-O {[%emt 0:00:01]} O-O {[%emt 0:00:01]} 11. Rc1 {[%emt 0:00:01]} Re8 {[%emt 0:00:03]} 12. Na4 {[%emt 0:00:02]} g6 {[%emt 0:00:20]} 13. b4 {[%emt 0:00:07]} Bxd3 {[%emt 0:00:11]} 14. Qxd3 {[%emt 0:00:00]} Nf5 {[%emt 0:00:00]} 15. Nc5 {[%emt 0:00:01]} Nd6 {[%emt 0:00:02]} 16. Nd2 {[%emt 0:00:02]} a5 {[%emt 0:00:31]} 17. a3 {[%emt 0:01:22]} b6 {[%emt 0:00:02]} 18. Nxd7 {[%emt 0:00:20]} Qxd7 {[%emt 0:00:02]} 19. Rc2 {[%emt 0:00:07]} b5 {[%emt 0:00:20]} 20. Nb3 {[%emt 0:00:06]} axb4 {[%emt 0:00:38]} 21. Nc5 {[%emt 0:00:15]} Qe7 {[%emt 0:00:10]} 22. axb4 {[%emt 0:00:01]} Nc4 {[%emt 0:00:01]} 23. g3 {[%emt 0:00:14]} Kg7 {[%emt 0:00:16]} 24. Qe2 {[%emt 0:00:10]} Ra3 {[%emt 0:00:13]} 25. Ra2 {[%emt 0:00:07]} Rxa2 {[%emt 0:00:51]} 26. Qxa2 {[%emt 0:00:14]} h5 {[%emt 0:00:00]} 27. Ra1 {[%emt 0:00:15]} h4 {[%emt 0:00:11]} 28. Qa7 {[%emt 0:00:03]} hxg3 {[%emt 0:00:55]} 29. hxg3 {[%emt 0:00:02]} Qg5 {[%emt 0:00:01]} 30. Qd7 {[%emt 0:00:21]} Rxe3 {[%emt 0:00:41]} 31. fxe3 {[%emt 0:00:36]} Qxg3+ {[%emt 0:00:06]} 32. Kh1 {[%emt 0:00:02]} Nxe3 {[%emt 0:00:55]} 33. Ra2 {[%emt 0:00:07]} Qf3+ {[%emt 0:00:46]} 34. Kg1 {[%emt 0:00:31]} Qf1+ {[%emt 0:00:22]} 35. Kh2 {[%emt 0:00:01]} Qf4+ {[%emt 0:00:00]} 36. Kh1 {[%emt 0:00:23]} Qh4+ {[%emt 0:00:04]} 37. Kg1 {[%emt 0:00:05]} Qg3+ {[%emt 0:00:04]} 38. Kh1 {[%emt 0:00:03]} Qf3+ {[%emt 0:00:43]} 39. Kh2 {[%emt 0:00:08]} Qf4+ {[%emt 0:00:33]} 40. Kh3 {[%emt 0:00:17]} Qf3+ {[%emt 0:00:01]} 41. Kh2 {[%emt 0:00:08]} Qf4+ {[%emt 0:00:02]} 1/2-1/2

[Event "CCT Chessable Masters Play-In 2025"]
[Site "Online"]
[Date "2025.02.17"]
[Round "4.38"]
[White "Sevian, Samuel"]
[Black "Banusz, Tamas"]
[Result "1-0"]
[ECO "B33"]
[WhiteElo "2692"]
[BlackElo "2582"]
[PlyCount "133"]
[EventDate "2025.02.13"]
[EventType "swiss"]
[EventCountry "NET"]
[TimeControl "600"]
[WhiteClock "0:02:56"]
[BlackClock "0:02:40"]

1. e4 {[%emt 0:00:01]} c5 {[%emt 0:00:02]} 2. Nf3 {[%emt 0:00:01]} Nc6 {[%emt 0:00:01]} 3. d4 {[%emt 0:00:12]} cxd4 {[%emt 0:00:01]} 4. Nxd4 {[%emt 0:00:00]} Nf6 {[%emt 0:00:00]} 5. Nc3 {[%emt 0:00:01]} e5 {[%emt 0:00:01]} 6. Ndb5 {[%emt 0:00:01]} d6 {[%emt 0:00:01]} 7. Bg5 {[%emt 0:00:02]} a6 {[%emt 0:00:01]} 8. Na3 {[%emt 0:00:02]} b5 {[%emt 0:00:00]} 9. Nd5 {[%emt 0:00:15]} Be7 {[%emt 0:00:02]} 10. Bxf6 {[%emt 0:00:01]} Bxf6 {[%emt 0:00:01]} 11. c4 {[%emt 0:00:01]} b4 {[%emt 0:00:02]} 12. Nc2 {[%emt 0:00:00]} a5 {[%emt 0:00:05]} 13. g3 {[%emt 0:00:03]} O-O {[%emt 0:00:05]} 14. Bg2 {[%emt 0:00:02]} g6 {[%emt 0:00:01]} 15. Nxf6+ {[%emt 0:00:04]} Qxf6 {[%emt 0:00:02]} 16. Qd2 {[%emt 0:00:00]} Be6 {[%emt 0:00:34]} 17. b3 {[%emt 0:00:04]} Qe7 {[%emt 0:00:14]} 18. O-O {[%emt 0:00:06]} f6 {[%emt 0:00:14]} 19. Rad1 {[%emt 0:00:26]} Rfd8 {[%emt 0:00:06]} 20. f4 {[%emt 0:00:04]} Bf7 {[%emt 0:00:09]} 21. Kh1 {[%emt 0:00:02]} Kg7 {[%emt 0:00:07]} 22. Rf2 {[%emt 0:00:02]} Bg8 {[%emt 0:00:07]} 23. Rdf1 {[%emt 0:00:13]} Rf8 {[%emt 0:00:01]} 24. h3 {[%emt 0:00:12]} Rad8 {[%emt 0:00:07]} 25. Qe3 {[%emt 0:00:15]} Qa7 {[%emt 0:00:50]} 26. Qd3 {[%emt 0:00:13]} Qb7 {[%emt 0:00:23]} 27. h4 {[%emt 0:00:04]} h5 {[%emt 0:00:26]} 28. f5 {[%emt 0:00:07]} Bf7 {[%emt 0:00:16]} 29. fxg6 {[%emt 0:00:11]} Bxg6 {[%emt 0:00:01]} 30. Ne3 {[%emt 0:00:00]} Ne7 {[%emt 0:00:17]} 31. Kh2 {[%emt 0:00:02]} Qb6 {[%emt 0:00:06]} 32. Rd2 {[%emt 0:00:14]} Qb7 {[%emt 0:00:21]} 33. Rfd1 {[%emt 0:00:12]} Qc7 {[%emt 0:00:03]} 34. Rf2 {[%emt 0:00:09]} Qc8 {[%emt 0:00:04]} 35. Bh3 {[%emt 0:00:03]} Qc6 {[%emt 0:00:05]} 36. Nf5+ {[%emt 0:00:08]} Nxf5 {[%emt 0:00:04]} 37. Bxf5 {[%emt 0:00:00]} Bf7 {[%emt 0:00:01]} 38. Rdf1 {[%emt 0:00:10]} Rh8 {[%emt 0:00:03]} 39. Qe3 {[%emt 0:00:10]} Qc5 {[%emt 0:00:04]} 40. Qf3 {[%emt 0:00:05]} Rh6 {[%emt 0:00:03]} 41. Rd2 {[%emt 0:00:01]} Kf8 {[%emt 0:00:04]} 42. Bh3 {[%emt 0:00:05]} Ke7 {[%emt 0:00:07]} 43. Qf5 {[%emt 0:00:07]} Qe3 {[%emt 0:00:06]} 44. Rg2 {[%emt 0:00:05]} Rg6 {[%emt 0:00:14]} 45. Rf3 {[%emt 0:00:01]} Qd4 {[%emt 0:00:03]} 46. Rff2 {[%emt 0:00:13]} Rh6 {[%emt 0:00:04]} 47. Rd2 {[%emt 0:00:03]} Qc5 {[%emt 0:00:01]} 48. Rd3 {[%emt 0:00:19]} Rhh8 {[%emt 0:00:06]} 49. Rf2 {[%emt 0:00:18]} Rh6 {[%emt 0:00:01]} 50. Rff3 {[%emt 0:00:00]} Qc7 {[%emt 0:00:04]} 51. Rf1 {[%emt 0:00:07]} Qc5 {[%emt 0:00:01]} 52. Rfd1 {[%emt 0:00:18]} Qc7 {[%emt 0:00:04]} 53. R1d2 {[%emt 0:00:00]} Rhh8 {[%emt 0:00:05]} 54. Rd5 {[%emt 0:00:12]} Bxd5 {[%emt 0:00:08]} 55. Rxd5 {[%emt 0:00:01]} Rh6 {[%emt 0:00:02]} 56. Qf3 {[%emt 0:00:27]} Rhh8 {[%emt 0:00:05]} 57. Qd1 {[%emt 0:00:04]} Kf7 {[%emt 0:00:08]} 58. Bf5 {[%emt 0:00:08]} Kg7 {[%emt 0:00:03]} 59. Kh3 {[%emt 0:00:02]} Kf8 {[%emt 0:00:04]} 60. c5 {[%emt 0:00:07]} Ke7 {[%emt 0:00:01]} 61. Qc2 {[%emt 0:00:08]} Kf8 {[%emt 0:00:03]} 62. Qd3 {[%emt 0:00:05]} Ke7 {[%emt 0:00:08]} 63. Qc4 {[%emt 0:00:07]} Qc6 {[%emt 0:00:13]} 64. cxd6+ {[%emt 0:00:06]} Rxd6 {[%emt 0:00:01]} 65. Rc5 {[%emt 0:00:00]} Qe8 {[%emt 0:00:08]} 66. Rc7+ {[%emt 0:00:01]} Kf8 {[%emt 0:00:05]} 67. Qc5 {[%emt 0:00:01]} 1-0

[Event "CCT Chessable Masters Play-In 2025"]
[Site "Online"]
[Date "2025.02.17"]
[Round "4.39"]
[White "Salem, A.R. Saleh"]
[Black "Donchenko, Alexander"]
[Result "1-0"]
[ECO "E24"]
[WhiteElo "2631"]
[BlackElo "2632"]
[PlyCount "55"]
[EventDate "2025.02.13"]
[EventType "swiss"]
[EventCountry "NET"]
[TimeControl "600"]
[WhiteClock "0:04:54"]
[BlackClock "0:01:50"]

1. d4 {[%emt 0:00:01]} Nf6 {[%emt 0:00:02]} 2. c4 {[%emt 0:00:00]} e6 {[%emt 0:00:01]} 3. Nc3 {[%emt 0:00:01]} Bb4 {[%emt 0:00:01]} 4. a3 {[%emt 0:00:00]} Bxc3+ {[%emt 0:00:01]} 5. bxc3 {[%emt 0:00:01]} d6 {[%emt 0:00:04]} 6. f3 {[%emt 0:00:00]} Nc6 {[%emt 0:00:04]} 7. e4 {[%emt 0:00:01]} e5 {[%emt 0:00:01]} 8. Ne2 {[%emt 0:00:01]} h6 {[%emt 0:00:04]} 9. Ng3 {[%emt 0:00:02]} b6 {[%emt 0:00:03]} 10. Ra2 {[%emt 0:00:05]} O-O {[%emt 0:00:05]} 11. Be2 {[%emt 0:00:07]} Ba6 {[%emt 0:00:02]} 12. O-O {[%emt 0:00:03]} Na5 {[%emt 0:00:12]} 13. Nf5 {[%emt 0:00:02]} Re8 {[%emt 0:00:18]} 14. Qe1 {[%emt 0:00:08]} Nh5 {[%emt 0:00:22]} 15. f4 {[%emt 0:00:01]} Nxf4 {[%emt 0:00:07]} 16. Bxf4 {[%emt 0:00:07]} exf4 {[%emt 0:00:01]} 17. Rxf4 {[%emt 0:00:00]} Bc8 {[%emt 0:00:08]} 18. Nxh6+ {[%emt 0:00:39]} gxh6 {[%emt 0:00:02]} 19. Bh5 {[%emt 0:00:00]} Rf8 {[%emt 0:00:29]} 20. Raf2 {[%emt 0:00:16]} f5 {[%emt 0:00:12]} 21. exf5 {[%emt 0:00:07]} Rf6 {[%emt 0:00:25]} 22. Re2 {[%emt 0:01:12]} Bd7 {[%emt 0:00:13]} 23. Re7 {[%emt 0:00:01]} Kh8 {[%emt 0:01:09]} 24. Bg6 {[%emt 0:00:05]} Nc6 {[%emt 0:00:57]} 25. Rh7+ {[%emt 0:00:08]} Kg8 {[%emt 0:00:00]} 26. Qe4 {[%emt 0:00:23]} d5 {[%emt 0:01:16]} 27. cxd5 {[%emt 0:00:44]} Na5 {[%emt 0:01:51]} 28. Rxh6 {[%emt 0:00:51]} 1-0

[Event "CCT Chessable Masters Play-In 2025"]
[Site "Online"]
[Date "2025.02.17"]
[Round "4.40"]
[White "Grandelius, Nils"]
[Black "Sarana, Alexey"]
[Result "1/2-1/2"]
[ECO "D35"]
[WhiteElo "2644"]
[BlackElo "2672"]
[PlyCount "73"]
[EventDate "2025.02.13"]
[EventType "swiss"]
[EventCountry "NET"]
[TimeControl "600"]
[WhiteClock "0:03:31"]
[BlackClock "0:03:16"]

1. d4 {[%emt 0:00:01]} Nf6 {[%emt 0:00:02]} 2. c4 {[%emt 0:00:01]} e6 {[%emt 0:00:01]} 3. Nc3 {[%emt 0:00:00]} d5 {[%emt 0:00:01]} 4. cxd5 {[%emt 0:00:01]} exd5 {[%emt 0:00:00]} 5. Bf4 {[%emt 0:00:01]} Bd6 {[%emt 0:00:24]} 6. Bxd6 {[%emt 0:00:01]} Qxd6 {[%emt 0:00:00]} 7. e3 {[%emt 0:00:00]} Bf5 {[%emt 0:00:01]} 8. Nge2 {[%emt 0:00:08]} Nbd7 {[%emt 0:00:16]} 9. Ng3 {[%emt 0:00:07]} Bg6 {[%emt 0:00:02]} 10. Bd3 {[%emt 0:00:11]} c6 {[%emt 0:00:26]} 11. h4 {[%emt 0:00:31]} Bxd3 {[%emt 0:00:05]} 12. Qxd3 {[%emt 0:00:00]} g6 {[%emt 0:00:05]} 13. h5 {[%emt 0:00:31]} O-O-O {[%emt 0:00:03]} 14. Qe2 {[%emt 0:00:07]} Kb8 {[%emt 0:00:11]} 15. O-O-O {[%emt 0:00:01]} Rhe8 {[%emt 0:00:04]} 16. hxg6 {[%emt 0:00:04]} fxg6 {[%emt 0:00:13]} 17. Kb1 {[%emt 0:00:04]} Re7 {[%emt 0:00:02]} 18. Nf1 {[%emt 0:00:10]} h5 {[%emt 0:00:08]} 19. Nd2 {[%emt 0:00:06]} Rde8 {[%emt 0:00:05]} 20. Nb3 {[%emt 0:00:12]} Ng4 {[%emt 0:00:05]} 21. Qc2 {[%emt 0:00:47]} Rf7 {[%emt 0:00:08]} 22. Rd2 {[%emt 0:00:03]} Qf6 {[%emt 0:00:48]} 23. Nd1 {[%emt 0:00:58]} Qg5 {[%emt 0:00:24]} 24. Re2 {[%emt 0:00:07]} Rfe7 {[%emt 0:00:15]} 25. Rhe1 {[%emt 0:00:08]} Nh6 {[%emt 0:00:20]} 26. f3 {[%emt 0:00:12]} Nf5 {[%emt 0:00:02]} 27. e4 {[%emt 0:00:14]} Ng3 {[%emt 0:00:49]} 28. Re3 {[%emt 0:00:02]} Qf4 {[%emt 0:00:52]} 29. Nf2 {[%emt 0:00:24]} Nf5 {[%emt 0:00:12]} 30. R3e2 {[%emt 0:00:01]} Ng3 {[%emt 0:00:06]} 31. Re3 {[%emt 0:00:12]} Nf5 {[%emt 0:00:01]} 32. R3e2 {[%emt 0:00:02]} dxe4 {[%emt 0:00:06]} 33. fxe4 {[%emt 0:00:09]} Ng3 {[%emt 0:00:15]} 34. Re3 {[%emt 0:00:06]} Nf5 {[%emt 0:00:02]} 35. R3e2 {[%emt 0:00:27]} Ng3 {[%emt 0:00:09]} 36. Re3 {[%emt 0:00:02]} Nf5 {[%emt 0:00:01]} 37. R3e2 {[%emt 0:00:18]} 1/2-1/2